[Event "*** SCC Grand Prix: Titled Tuesday Blitz"]
[Site "Chess.com"]
[Date "2020.08.11"]
[Round "4"]
[White "shnitez"]
[Black "kobemagic"]
[Result "1-0"]
[WhiteElo "2466"]
[BlackElo "2273"]
[TimeControl "180+1"]
[EndTime "10:38:41 PDT"]
[Termination "shnitez won by checkmate"]

1. d4 {[%clk 0:02:57.5]} 1... Nf6 {[%clk 0:02:57]} 2. c4 {[%clk 0:02:56.1]} 2...
c5 {[%clk 0:02:57.6]} 3. Nf3 {[%clk 0:02:54.7]} 3... cxd4 {[%clk 0:02:56.9]} 4.
Nxd4 {[%clk 0:02:54.8]} 4... e5 {[%clk 0:02:57.5]} 5. Nb5 {[%clk 0:02:54.3]}
5... d5 {[%clk 0:02:57.8]} 6. cxd5 {[%clk 0:02:55.2]} 6... Bc5 {[%clk
0:02:57.6]} 7. N5c3 {[%clk 0:02:55.4]} 7... O-O {[%clk 0:02:57]} 8. g3 {[%clk
0:02:54.2]} 8... Nbd7 {[%clk 0:02:47.8]} 9. Bg2 {[%clk 0:02:51]} 9... Nb6 {[%clk
0:02:48.3]} 10. O-O {[%clk 0:02:34.3]} 10... Bf5 {[%clk 0:02:42.4]} 11. e4
{[%clk 0:02:33]} 11... Bg4 {[%clk 0:02:22.5]} 12. Qd3 {[%clk 0:02:32.2]} 12...
Rc8 {[%clk 0:02:20.5]} 13. Nd2 {[%clk 0:02:12.4]} 13... Ne8 {[%clk 0:02:12]} 14.
Nb3 {[%clk 0:02:09.1]} 14... Nd6 {[%clk 0:01:57.1]} 15. Nxc5 {[%clk 0:02:07.8]}
15... Rxc5 {[%clk 0:01:58]} 16. Be3 {[%clk 0:02:07.1]} 16... Rc4 {[%clk
0:01:52.3]} 17. b3 {[%clk 0:02:05]} 17... Rc8 {[%clk 0:01:47.6]} 18. Rac1 {[%clk
0:02:04]} 18... a6 {[%clk 0:01:42]} 19. f4 {[%clk 0:01:45.8]} 19... exf4 {[%clk
0:01:33.4]} 20. gxf4 {[%clk 0:01:44.2]} 20... Re8 {[%clk 0:01:31.2]} 21. Bd4
{[%clk 0:01:27]} 21... f6 {[%clk 0:01:20.9]} 22. Kh1 {[%clk 0:01:23.1]} 22...
Qd7 {[%clk 0:01:15]} 23. Rg1 {[%clk 0:01:18.8]} 23... Na8 {[%clk 0:00:58.6]} 24.
Bf3 {[%clk 0:01:14.3]} 24... Bxf3+ {[%clk 0:00:56.4]} 25. Qxf3 {[%clk
0:01:14.3]} 25... Kh8 {[%clk 0:00:56.7]} 26. Rg3 {[%clk 0:00:58.4]} 26... Nc7
{[%clk 0:00:54]} 27. Rcg1 {[%clk 0:00:57]} 27... Rg8 {[%clk 0:00:51.8]} 28. Qh5
{[%clk 0:00:51]} 28... Ncb5 {[%clk 0:00:42.7]} 29. Nxb5 {[%clk 0:00:39.7]} 29...
axb5 {[%clk 0:00:43.6]} 30. Rh3 {[%clk 0:00:35.5]} 30... h6 {[%clk 0:00:29.4]}
31. Bxf6 {[%clk 0:00:33.6]} 31... Nxe4 {[%clk 0:00:26]} 32. Qxh6# {[%clk
0:00:32.8]} 1-0

[Event "*** SCC Grand Prix: Titled Tuesday Blitz"]
[Site "Chess.com"]
[Date "2020.08.11"]
[Round "4"]
[White "Ind1anStar"]
[Black "chito89"]
[Result "0-1"]
[WhiteElo "2511"]
[BlackElo "2747"]
[TimeControl "180+1"]
[EndTime "10:38:42 PDT"]
[Termination "chito89 won by resignation"]

1. c4 {[%clk 0:03:00.9]} 1... b6 {[%clk 0:02:55.4]} 2. Nc3 {[%clk 0:02:54.5]}
2... Bb7 {[%clk 0:02:56.3]} 3. e4 {[%clk 0:02:53]} 3... e5 {[%clk 0:02:55.7]} 4.
Nge2 {[%clk 0:02:36.5]} 4... Nc6 {[%clk 0:02:52.5]} 5. g3 {[%clk 0:02:33.4]}
5... Bc5 {[%clk 0:02:52.1]} 6. Bg2 {[%clk 0:02:33.1]} 6... Nge7 {[%clk
0:02:52.4]} 7. O-O {[%clk 0:02:32.9]} 7... O-O {[%clk 0:02:52.7]} 8. d3 {[%clk
0:02:31.6]} 8... d6 {[%clk 0:02:41.9]} 9. Nd5 {[%clk 0:02:22.1]} 9... Qd7 {[%clk
0:02:32.2]} 10. Be3 {[%clk 0:01:58.3]} 10... a5 {[%clk 0:02:24]} 11. Qd2 {[%clk
0:01:50.5]} 11... f5 {[%clk 0:02:19.8]} 12. d4 {[%clk 0:01:30.7]} 12... exd4
{[%clk 0:02:10.2]} 13. Nxd4 {[%clk 0:01:28.5]} 13... Nxd4 {[%clk 0:01:46.3]} 14.
Bxd4 {[%clk 0:01:29.4]} 14... fxe4 {[%clk 0:01:36.8]} 15. Bxe4 {[%clk
0:01:19.8]} 15... Nxd5 {[%clk 0:01:25.9]} 16. cxd5 {[%clk 0:01:09.1]} 16... Rae8
{[%clk 0:01:00.5]} 17. Rfe1 {[%clk 0:01:07.3]} 17... Qg4 {[%clk 0:00:44.8]} 18.
Bxc5 {[%clk 0:00:49.4]} 18... Rxe4 {[%clk 0:00:43.2]} 19. Be3 {[%clk 0:00:30]}
19... Qf3 {[%clk 0:00:42.8]} 20. Rac1 {[%clk 0:00:22.1]} 20... Re5 {[%clk
0:00:38.2]} 21. Rxc7 {[%clk 0:00:06.1]} 21... Bxd5 {[%clk 0:00:36]} 0-1

[Event "*** SCC Grand Prix: Titled Tuesday Blitz"]
[Site "Chess.com"]
[Date "2020.08.11"]
[Round "4"]
[White "TregubovP"]
[Black "Terao90"]
[Result "1/2-1/2"]
[WhiteElo "2591"]
[BlackElo "2331"]
[TimeControl "180+1"]
[EndTime "10:38:42 PDT"]
[Termination "Game drawn by repetition"]

1. e4 {[%clk 0:03:00.9]} 1... c5 {[%clk 0:02:59.4]} 2. Nf3 {[%clk 0:03:00.6]}
2... Nc6 {[%clk 0:02:59.4]} 3. c3 {[%clk 0:03:00.2]} 3... d5 {[%clk 0:02:58.7]}
4. exd5 {[%clk 0:03:00.1]} 4... Qxd5 {[%clk 0:02:59.6]} 5. d4 {[%clk 0:03:00.3]}
5... Bg4 {[%clk 0:02:57.4]} 6. Be2 {[%clk 0:02:59.7]} 6... cxd4 {[%clk
0:02:56.5]} 7. cxd4 {[%clk 0:02:58.9]} 7... e6 {[%clk 0:02:56.6]} 8. Nc3 {[%clk
0:02:58.1]} 8... Qd6 {[%clk 0:02:55.9]} 9. d5 {[%clk 0:02:49.4]} 9... exd5
{[%clk 0:02:53]} 10. O-O {[%clk 0:02:42.4]} 10... Nf6 {[%clk 0:02:50]} 11. h3
{[%clk 0:02:34.7]} 11... Be6 {[%clk 0:02:34.8]} 12. Nb5 {[%clk 0:02:34.2]} 12...
Qd7 {[%clk 0:02:29.5]} 13. Bf4 {[%clk 0:02:33]} 13... Rc8 {[%clk 0:02:26.2]} 14.
Ne5 {[%clk 0:02:23.1]} 14... Nxe5 {[%clk 0:02:24.3]} 15. Bxe5 {[%clk 0:02:23.3]}
15... a6 {[%clk 0:02:16]} 16. Bxf6 {[%clk 0:02:13.7]} 16... axb5 {[%clk
0:02:14.5]} 17. Bd4 {[%clk 0:02:04.9]} 17... b4 {[%clk 0:02:05.8]} 18. Re1
{[%clk 0:01:52.5]} 18... Be7 {[%clk 0:02:03.4]} 19. Bxg7 {[%clk 0:01:31.5]}
19... Rg8 {[%clk 0:02:03.1]} 20. Qd4 {[%clk 0:01:32]} 20... Bc5 {[%clk
0:01:50.8]} 21. Qf6 {[%clk 0:01:24.3]} 21... Qe7 {[%clk 0:01:40.6]} 22. Bb5+
{[%clk 0:01:07.8]} 22... Kd8 {[%clk 0:01:37.3]} 23. Rad1 {[%clk 0:00:45.6]}
23... Qxf6 {[%clk 0:01:33.7]} 24. Bxf6+ {[%clk 0:00:45.7]} 24... Kc7 {[%clk
0:01:33.7]} 25. Kh2 {[%clk 0:00:37.9]} 25... Bxf2 {[%clk 0:01:21.4]} 26. Rf1
{[%clk 0:00:31.3]} 26... Bg3+ {[%clk 0:01:19.3]} 27. Kg1 {[%clk 0:00:31.4]}
27... Kb6 {[%clk 0:01:17.7]} 28. Bd3 {[%clk 0:00:30.6]} 28... h5 {[%clk
0:01:14.9]} 29. Bd4+ {[%clk 0:00:28.4]} 29... Kc7 {[%clk 0:01:09.8]} 30. Rf3
{[%clk 0:00:27.4]} 30... h4 {[%clk 0:01:07.2]} 31. Bc5 {[%clk 0:00:22.3]} 31...
Bd6 {[%clk 0:01:00.6]} 32. Bf2 {[%clk 0:00:22.3]} 32... Bg3 {[%clk 0:00:53]} 33.
Bc5 {[%clk 0:00:21.7]} 33... Bd6 {[%clk 0:00:44.7]} 34. Bf2 {[%clk 0:00:21.2]}
34... Bg3 {[%clk 0:00:44.1]} 35. Bc5 {[%clk 0:00:21.1]} 1/2-1/2

[Event "*** SCC Grand Prix: Titled Tuesday Blitz"]
[Site "Chess.com"]
[Date "2020.08.11"]
[Round "4"]
[White "suyu28"]
[Black "FabianoCaruana"]
[Result "0-1"]
[WhiteElo "2570"]
[BlackElo "2997"]
[TimeControl "180+1"]
[EndTime "10:38:44 PDT"]
[Termination "FabianoCaruana won by checkmate"]

1. d4 {[%clk 0:02:59.7]} 1... Nf6 {[%clk 0:02:55.9]} 2. c4 {[%clk 0:02:59.9]}
2... Nc6 {[%clk 0:02:55.6]} 3. Nf3 {[%clk 0:02:58.9]} 3... e6 {[%clk 0:02:55.8]}
4. g3 {[%clk 0:02:59]} 4... d6 {[%clk 0:02:54.5]} 5. Bg2 {[%clk 0:02:58.1]} 5...
g6 {[%clk 0:02:55.1]} 6. Nc3 {[%clk 0:02:56.1]} 6... Bg7 {[%clk 0:02:55.4]} 7.
e4 {[%clk 0:02:56]} 7... O-O {[%clk 0:02:54.5]} 8. O-O {[%clk 0:02:55.9]} 8...
Re8 {[%clk 0:02:53.6]} 9. h3 {[%clk 0:02:48.9]} 9... e5 {[%clk 0:02:52.8]} 10.
Be3 {[%clk 0:02:46.3]} 10... exd4 {[%clk 0:02:39.1]} 11. Nxd4 {[%clk 0:02:45.8]}
11... Bd7 {[%clk 0:02:34.3]} 12. Rc1 {[%clk 0:02:39.1]} 12... a6 {[%clk
0:02:32.6]} 13. Re1 {[%clk 0:02:32.9]} 13... Rb8 {[%clk 0:02:31.4]} 14. Qd2
{[%clk 0:02:25.3]} 14... Ne5 {[%clk 0:02:29.1]} 15. Qe2 {[%clk 0:01:58.3]} 15...
c5 {[%clk 0:02:27.8]} 16. Nc2 {[%clk 0:01:49.4]} 16... b5 {[%clk 0:02:25.8]} 17.
b3 {[%clk 0:01:39.1]} 17... bxc4 {[%clk 0:02:23.8]} 18. bxc4 {[%clk 0:01:39]}
18... Rb2 {[%clk 0:02:20.5]} 19. Rb1 {[%clk 0:01:30]} 19... Qb8 {[%clk
0:02:03.1]} 20. f4 {[%clk 0:01:17.1]} 20... Nc6 {[%clk 0:02:00.7]} 21. Qd3
{[%clk 0:01:17.3]} 21... Rxb1 {[%clk 0:01:44.7]} 22. Rxb1 {[%clk 0:01:17.1]}
22... Qc7 {[%clk 0:01:45.1]} 23. Nd5 {[%clk 0:01:09.2]} 23... Nxd5 {[%clk
0:01:40.9]} 24. cxd5 {[%clk 0:01:10.1]} 24... Nb4 {[%clk 0:01:24.6]} 25. Nxb4
{[%clk 0:01:07.4]} 25... cxb4 {[%clk 0:01:25.5]} 26. Rxb4 {[%clk 0:00:45.2]}
26... Bb5 {[%clk 0:01:23]} 27. Qd1 {[%clk 0:00:44.6]} 27... Qa5 {[%clk
0:01:13.7]} 28. Qb3 {[%clk 0:00:35.5]} 28... Rc8 {[%clk 0:01:12.9]} 29. a4
{[%clk 0:00:32.1]} 29... Rc3 {[%clk 0:01:05.4]} 30. Qb1 {[%clk 0:00:31]} 30...
Rxe3 {[%clk 0:01:05.5]} 31. axb5 {[%clk 0:00:25.7]} 31... Bc3 {[%clk 0:01:04.9]}
32. Kf2 {[%clk 0:00:26.1]} 32... Re1 {[%clk 0:00:59.3]} 33. b6 {[%clk
0:00:17.5]} 33... Qc5+ {[%clk 0:00:55.6]} 34. Kf3 {[%clk 0:00:16.9]} 34... Qe3+
{[%clk 0:00:55.6]} 35. Kg4 {[%clk 0:00:17.4]} 35... h5+ {[%clk 0:00:55.8]} 36.
Kh4 {[%clk 0:00:17.8]} 36... Bf6# {[%clk 0:00:56]} 0-1

[Event "*** SCC Grand Prix: Titled Tuesday Blitz"]
[Site "Chess.com"]
[Date "2020.08.11"]
[Round "4"]
[White "googlegoom"]
[Black "MikeSailer"]
[Result "1-0"]
[WhiteElo "2389"]
[BlackElo "2121"]
[TimeControl "180+1"]
[EndTime "10:38:44 PDT"]
[Termination "googlegoom won on time"]

1. Nf3 {[%clk 0:03:00.9]} 1... d5 {[%clk 0:02:59.9]} 2. b3 {[%clk 0:03:01]} 2...
Bf5 {[%clk 0:02:59.9]} 3. Bb2 {[%clk 0:03:01.5]} 3... e6 {[%clk 0:03:00.6]} 4.
e3 {[%clk 0:03:02.1]} 4... Nf6 {[%clk 0:03:01.2]} 5. Be2 {[%clk 0:03:02.2]} 5...
Be7 {[%clk 0:03:01.7]} 6. O-O {[%clk 0:03:02.8]} 6... O-O {[%clk 0:03:02.3]} 7.
d4 {[%clk 0:03:03.4]} 7... h6 {[%clk 0:03:02.9]} 8. Nbd2 {[%clk 0:03:02.5]} 8...
c5 {[%clk 0:03:02.9]} 9. c4 {[%clk 0:03:02.9]} 9... cxd4 {[%clk 0:03:03.2]} 10.
Nxd4 {[%clk 0:03:02.6]} 10... Bh7 {[%clk 0:03:02.8]} 11. Bf3 {[%clk 0:02:51.8]}
11... Nc6 {[%clk 0:03:02.4]} 12. cxd5 {[%clk 0:02:51.2]} 12... Nxd4 {[%clk
0:02:58.8]} 13. Bxd4 {[%clk 0:02:50]} 13... exd5 {[%clk 0:02:52.9]} 14. Nb1
{[%clk 0:02:39.3]} 14... Ne4 {[%clk 0:02:46.3]} 15. Nc3 {[%clk 0:02:38.3]} 15...
Qa5 {[%clk 0:02:35.9]} 16. Bxe4 {[%clk 0:02:23.7]} 16... dxe4 {[%clk 0:02:28.2]}
17. Qd2 {[%clk 0:02:22.6]} 17... Qh5 {[%clk 0:02:11.1]} 18. Qb2 {[%clk
0:02:12.3]} 18... f5 {[%clk 0:01:48.2]} 19. Nd5 {[%clk 0:02:03.4]} 19... Bd6
{[%clk 0:01:46]} 20. g3 {[%clk 0:02:01.1]} 20... Rf7 {[%clk 0:01:41.1]} 21. Bxg7
{[%clk 0:01:57.6]} 21... f4 {[%clk 0:01:20]} 22. Nf6+ {[%clk 0:01:32.8]} 22...
Rxf6 {[%clk 0:01:15]} 23. Qxf6 {[%clk 0:01:30.1]} 23... f3 {[%clk 0:00:51.6]}
24. Qxh6 {[%clk 0:01:19.3]} 24... Qf5 {[%clk 0:00:45.7]} 25. Bf6 {[%clk
0:01:03.7]} 25... Bf8 {[%clk 0:00:21.1]} 26. Qg5+ {[%clk 0:01:01.8]} 26... Qxg5
{[%clk 0:00:21.8]} 27. Bxg5 {[%clk 0:01:02.5]} 27... Bf5 {[%clk 0:00:15.8]} 28.
Rfd1 {[%clk 0:01:01]} 28... Rc8 {[%clk 0:00:12.5]} 29. Rac1 {[%clk 0:01:01]}
29... Re8 {[%clk 0:00:06.6]} 30. Rc7 {[%clk 0:00:57.7]} 1-0

[Event "*** SCC Grand Prix: Titled Tuesday Blitz"]
[Site "Chess.com"]
[Date "2020.08.11"]
[Round "4"]
[White "LimeInTheCoconut"]
[Black "alexrustemov"]
[Result "1/2-1/2"]
[WhiteElo "2471"]
[BlackElo "2640"]
[TimeControl "180+1"]
[EndTime "10:38:45 PDT"]
[Termination "Game drawn by repetition"]

1. Nf3 {[%clk 0:03:00.9]} 1... d5 {[%clk 0:02:59.3]} 2. e3 {[%clk 0:02:57.3]}
2... Nf6 {[%clk 0:02:59]} 3. c4 {[%clk 0:02:54]} 3... c6 {[%clk 0:02:59.1]} 4.
b3 {[%clk 0:02:52.6]} 4... Bg4 {[%clk 0:02:58.8]} 5. Be2 {[%clk 0:02:51.3]} 5...
e6 {[%clk 0:02:58.5]} 6. Bb2 {[%clk 0:02:50.1]} 6... Bd6 {[%clk 0:02:58.1]} 7.
O-O {[%clk 0:02:47.8]} 7... Nbd7 {[%clk 0:02:57.7]} 8. d4 {[%clk 0:02:47.9]}
8... Ne4 {[%clk 0:02:53.9]} 9. Nc3 {[%clk 0:02:44.5]} 9... f5 {[%clk 0:02:53.5]}
10. Nxe4 {[%clk 0:02:40.1]} 10... fxe4 {[%clk 0:02:52.9]} 11. Ne5 {[%clk
0:02:32.6]} 11... Bxe2 {[%clk 0:02:50.6]} 12. Qxe2 {[%clk 0:02:33]} 12... O-O
{[%clk 0:02:49.2]} 13. Nxd7 {[%clk 0:02:28.6]} 13... Qxd7 {[%clk 0:02:46]} 14.
f4 {[%clk 0:02:28]} 14... exf3 {[%clk 0:02:36]} 15. Rxf3 {[%clk 0:02:27.3]}
15... Rxf3 {[%clk 0:02:34.7]} 16. Qxf3 {[%clk 0:02:28.2]} 16... Rf8 {[%clk
0:02:33.6]} 17. Qh3 {[%clk 0:02:28.7]} 17... Qf7 {[%clk 0:02:32.3]} 18. Qh4
{[%clk 0:02:09.6]} 18... Qg6 {[%clk 0:02:14.4]} 19. Qe1 {[%clk 0:02:00.2]} 19...
Qc2 {[%clk 0:02:04.7]} 20. Bc3 {[%clk 0:01:49.2]} 20... Be7 {[%clk 0:01:28.9]}
21. Qd2 {[%clk 0:01:36.6]} 21... Qf5 {[%clk 0:01:26.2]} 22. Qe2 {[%clk
0:01:31.8]} 22... Bg5 {[%clk 0:01:18.5]} 23. Bb4 {[%clk 0:01:31.6]} 23... Rf6
{[%clk 0:01:16.5]} 24. Be7 {[%clk 0:01:23.9]} 24... Rf7 {[%clk 0:01:03.7]} 25.
Bxg5 {[%clk 0:01:24.2]} 25... Qxg5 {[%clk 0:01:04]} 26. Rf1 {[%clk 0:01:23.1]}
26... Rxf1+ {[%clk 0:01:00.2]} 27. Kxf1 {[%clk 0:01:24]} 27... Qf5+ {[%clk
0:01:00.1]} 28. Kg1 {[%clk 0:01:20.8]} 28... Qb1+ {[%clk 0:00:58.2]} 29. Kf2
{[%clk 0:01:20.6]} 29... h6 {[%clk 0:00:57]} 30. h4 {[%clk 0:01:17.5]} 30... Kh7
{[%clk 0:00:55.1]} 31. h5 {[%clk 0:01:16.8]} 31... a5 {[%clk 0:00:48.7]} 32. Kg3
{[%clk 0:01:08.5]} 32... a4 {[%clk 0:00:44.2]} 33. Qg4 {[%clk 0:00:54]} 33...
Qe1+ {[%clk 0:00:24]} 34. Kh2 {[%clk 0:00:51.6]} 34... Qxe3 {[%clk 0:00:19.8]}
35. Qg6+ {[%clk 0:00:51.6]} 35... Kg8 {[%clk 0:00:19.9]} 36. Qe8+ {[%clk
0:00:52.1]} 36... Kh7 {[%clk 0:00:20.4]} 37. Qg6+ {[%clk 0:00:52.8]} 37... Kg8
{[%clk 0:00:20.7]} 38. Qe8+ {[%clk 0:00:53.5]} 38... Kh7 {[%clk 0:00:21]} 39.
Qg6+ {[%clk 0:00:54.2]} 1/2-1/2

[Event "*** SCC Grand Prix: Titled Tuesday Blitz"]
[Site "Chess.com"]
[Date "2020.08.11"]
[Round "4"]
[White "capatl"]
[Black "DFeco"]
[Result "1-0"]
[WhiteElo "2405"]
[BlackElo "2174"]
[TimeControl "180+1"]
[EndTime "10:38:45 PDT"]
[Termination "capatl won by resignation"]

1. c4 {[%clk 0:03:00.9]} 1... c5 {[%clk 0:02:59.8]} 2. Nc3 {[%clk 0:03:01.1]}
2... Nc6 {[%clk 0:02:59.3]} 3. g3 {[%clk 0:03:01.2]} 3... g6 {[%clk 0:02:59.9]}
4. Bg2 {[%clk 0:03:02.1]} 4... Bg7 {[%clk 0:03:00.3]} 5. e3 {[%clk 0:03:00.8]}
5... d6 {[%clk 0:02:59.4]} 6. Nge2 {[%clk 0:03:00.4]} 6... Be6 {[%clk
0:02:58.3]} 7. b3 {[%clk 0:02:57.9]} 7... Qd7 {[%clk 0:02:50.6]} 8. d4 {[%clk
0:02:54.6]} 8... Bf5 {[%clk 0:02:43.5]} 9. O-O {[%clk 0:02:38.4]} 9... cxd4
{[%clk 0:02:38.3]} 10. Nxd4 {[%clk 0:02:21.5]} 10... Nxd4 {[%clk 0:02:37.3]} 11.
exd4 {[%clk 0:02:22.4]} 11... Nf6 {[%clk 0:02:34.7]} 12. Re1 {[%clk 0:02:15.9]}
12... O-O {[%clk 0:02:31.6]} 13. Qe2 {[%clk 0:01:53.1]} 13... e5 {[%clk
0:02:20.3]} 14. dxe5 {[%clk 0:01:48.1]} 14... dxe5 {[%clk 0:02:19.3]} 15. Bb2
{[%clk 0:01:48.4]} 15... Rfe8 {[%clk 0:02:12.8]} 16. Rad1 {[%clk 0:01:46.1]}
16... Qe7 {[%clk 0:02:00.4]} 17. Nb5 {[%clk 0:01:35.9]} 17... Rad8 {[%clk
0:01:38.6]} 18. Ba3 {[%clk 0:01:32.3]} 18... Qe6 {[%clk 0:01:30.9]} 19. Nc7
{[%clk 0:01:26.9]} 19... Qc8 {[%clk 0:01:04.3]} 20. Nxe8 {[%clk 0:01:23.2]}
20... Rxe8 {[%clk 0:01:04.5]} 21. Qe3 {[%clk 0:01:17.6]} 21... e4 {[%clk
0:00:59.8]} 22. Qxa7 {[%clk 0:01:12.8]} 22... Bh3 {[%clk 0:00:51.6]} 23. Bb2
{[%clk 0:01:08.1]} 23... Bxg2 {[%clk 0:00:48.6]} 24. Kxg2 {[%clk 0:01:09]} 24...
Qg4 {[%clk 0:00:46.5]} 25. Bxf6 {[%clk 0:00:55.4]} 25... Qf3+ {[%clk 0:00:46.4]}
26. Kg1 {[%clk 0:00:55.1]} 26... Bxf6 {[%clk 0:00:45.6]} 27. Qe3 {[%clk
0:00:54.4]} 27... Qf5 {[%clk 0:00:45.3]} 28. Rd5 {[%clk 0:00:49.7]} 28... Qe6
{[%clk 0:00:37.6]} 29. Red1 {[%clk 0:00:45.4]} 29... Kg7 {[%clk 0:00:34.3]} 30.
Qf4 {[%clk 0:00:44.4]} 30... Be7 {[%clk 0:00:26.8]} 31. Qe5+ {[%clk 0:00:43.1]}
31... Qxe5 {[%clk 0:00:26.3]} 32. Rxe5 {[%clk 0:00:44]} 1-0

[Event "*** SCC Grand Prix: Titled Tuesday Blitz"]
[Site "Chess.com"]
[Date "2020.08.11"]
[Round "4"]
[White "j2806"]
[Black "Irishchessman16"]
[Result "0-1"]
[WhiteElo "2074"]
[BlackElo "2361"]
[TimeControl "180+1"]
[EndTime "10:38:46 PDT"]
[Termination "Irishchessman16 won by resignation"]

1. e4 {[%clk 0:03:00.9]} 1... c5 {[%clk 0:02:59.3]} 2. Nf3 {[%clk 0:03:01.1]}
2... Nc6 {[%clk 0:02:59.1]} 3. d4 {[%clk 0:03:01.1]} 3... cxd4 {[%clk 0:03:00]}
4. Nxd4 {[%clk 0:03:01.6]} 4... Nf6 {[%clk 0:03:00.7]} 5. Nc3 {[%clk 0:03:00.7]}
5... e5 {[%clk 0:03:01.3]} 6. Ndb5 {[%clk 0:02:57.4]} 6... d6 {[%clk 0:03:01.5]}
7. Bg5 {[%clk 0:02:55.3]} 7... a6 {[%clk 0:03:02]} 8. Na3 {[%clk 0:02:55.3]}
8... b5 {[%clk 0:03:02.6]} 9. Nd5 {[%clk 0:02:55.7]} 9... Be7 {[%clk 0:03:02.7]}
10. Bxf6 {[%clk 0:02:56.2]} 10... Bxf6 {[%clk 0:03:02.8]} 11. c3 {[%clk
0:02:56.8]} 11... Ne7 {[%clk 0:03:03.1]} 12. Nxf6+ {[%clk 0:02:49.2]} 12... gxf6
{[%clk 0:03:04]} 13. Nc2 {[%clk 0:02:48.6]} 13... Bb7 {[%clk 0:03:00.8]} 14. f3
{[%clk 0:02:46.7]} 14... f5 {[%clk 0:02:55]} 15. Bd3 {[%clk 0:02:44]} 15... Qb6
{[%clk 0:02:38.3]} 16. exf5 {[%clk 0:02:37.2]} 16... Rg8 {[%clk 0:02:32.1]} 17.
Qe2 {[%clk 0:02:35.8]} 17... Nd5 {[%clk 0:02:31.1]} 18. g3 {[%clk 0:02:30.8]}
18... b4 {[%clk 0:02:08.1]} 19. c4 {[%clk 0:02:26.4]} 19... Nf6 {[%clk
0:02:07.2]} 20. Ne3 {[%clk 0:02:20.1]} 20... O-O-O {[%clk 0:01:51.7]} 21. Rc1
{[%clk 0:02:08.5]} 21... Kb8 {[%clk 0:01:49.7]} 22. O-O {[%clk 0:01:57.3]} 22...
h5 {[%clk 0:01:47.1]} 23. b3 {[%clk 0:01:46.8]} 23... Qd4 {[%clk 0:01:20.3]} 24.
Rcd1 {[%clk 0:01:37.6]} 24... Qh4 {[%clk 0:01:17.7]} 25. Qf2 {[%clk 0:01:34.2]}
25... Qg5 {[%clk 0:01:08.9]} 26. Nd5 {[%clk 0:01:23.8]} 26... h4 {[%clk
0:01:02.6]} 27. Nxf6 {[%clk 0:01:19.7]} 27... hxg3 {[%clk 0:01:01.8]} 28. hxg3
{[%clk 0:01:17.5]} 28... Qxf6 {[%clk 0:01:01.6]} 29. g4 {[%clk 0:01:14.8]} 29...
Rh8 {[%clk 0:00:58.3]} 30. Qg3 {[%clk 0:01:11.2]} 30... Rdg8 {[%clk 0:00:48.7]}
31. Rd2 {[%clk 0:01:09.5]} 31... Qh6 {[%clk 0:00:43.4]} 32. Rh2 {[%clk 0:01:04]}
32... Qe3+ {[%clk 0:00:42.8]} 33. Qf2 {[%clk 0:00:57.9]} 33... Qxd3 {[%clk
0:00:39.2]} 34. Rxh8 {[%clk 0:00:57.4]} 34... Rxh8 {[%clk 0:00:38.8]} 35. Kg2
{[%clk 0:00:56.1]} 35... Rg8 {[%clk 0:00:33.9]} 36. Qb6 {[%clk 0:00:55.3]} 36...
e4 {[%clk 0:00:27.4]} 37. Qf2 {[%clk 0:00:43.9]} 37... exf3+ {[%clk 0:00:26]}
38. Kg3 {[%clk 0:00:44.2]} 38... Qe4 {[%clk 0:00:25.2]} 0-1

[Event "*** SCC Grand Prix: Titled Tuesday Blitz"]
[Site "Chess.com"]
[Date "2020.08.11"]
[Round "4"]
[White "baki83"]
[Black "Zkid"]
[Result "0-1"]
[WhiteElo "2723"]
[BlackElo "2869"]
[TimeControl "180+1"]
[EndTime "10:38:47 PDT"]
[Termination "Zkid won by checkmate"]

1. e4 {[%clk 0:03:00.9]} 1... e6 {[%clk 0:02:59.1]} 2. d4 {[%clk 0:03:00.4]}
2... d5 {[%clk 0:02:59.7]} 3. exd5 {[%clk 0:03:01]} 3... exd5 {[%clk 0:02:59.8]}
4. Nf3 {[%clk 0:03:00.8]} 4... Nc6 {[%clk 0:02:59.4]} 5. Bb5 {[%clk 0:02:50]}
5... Bd6 {[%clk 0:02:59.2]} 6. O-O {[%clk 0:02:44.9]} 6... Ne7 {[%clk
0:02:56.5]} 7. c4 {[%clk 0:02:35.6]} 7... dxc4 {[%clk 0:02:56.3]} 8. Bxc4 {[%clk
0:02:33.8]} 8... O-O {[%clk 0:02:49.1]} 9. h3 {[%clk 0:02:33]} 9... Bf5 {[%clk
0:02:43.4]} 10. Nc3 {[%clk 0:02:32.2]} 10... Qd7 {[%clk 0:02:36.3]} 11. Re1
{[%clk 0:02:24.2]} 11... Rad8 {[%clk 0:02:11.2]} 12. a3 {[%clk 0:01:44.6]} 12...
Ng6 {[%clk 0:01:52.3]} 13. Bg5 {[%clk 0:01:12.8]} 13... Rde8 {[%clk 0:01:49]}
14. Qd2 {[%clk 0:01:12.5]} 14... Bxh3 {[%clk 0:01:42.1]} 15. gxh3 {[%clk
0:01:01.8]} 15... Qxh3 {[%clk 0:01:43]} 16. Qd3 {[%clk 0:00:38.2]} 16... Bf4
{[%clk 0:01:15]} 17. Bxf7+ {[%clk 0:00:36.3]} 17... Kxf7 {[%clk 0:01:12.3]} 18.
Ne5+ {[%clk 0:00:28.4]} 18... Rxe5 {[%clk 0:01:10]} 19. Qxh3 {[%clk 0:00:25.5]}
19... Rxg5+ {[%clk 0:01:09.8]} 20. Kf1 {[%clk 0:00:24.9]} 20... Kg8 {[%clk
0:01:07.8]} 21. Re4 {[%clk 0:00:21.9]} 21... Bg3 {[%clk 0:01:05]} 22. Nd1 {[%clk
0:00:16.1]} 22... Nf4 {[%clk 0:01:01]} 23. Qd7 {[%clk 0:00:13]} 23... Rd5 {[%clk
0:00:36.6]} 24. Qg4 {[%clk 0:00:12.1]} 24... Bh2 {[%clk 0:00:36.7]} 25. Ne3
{[%clk 0:00:09]} 25... Rd6 {[%clk 0:00:35.4]} 26. Nf5 {[%clk 0:00:06.7]} 26...
Rg6 {[%clk 0:00:34.3]} 27. Qf3 {[%clk 0:00:03.8]} 27... Rg1# {[%clk 0:00:33.8]}
0-1